Cogmind - Beta 15 @@@ ROGUE MODE // 2025.09.18 @ 23:38:06 Player: Lillith Result: Destroyed by P-60 Hacker with Shock Rifle Performance ------------- Evolutions (0) 0 Regions Visited (3) 600 Robots Destroyed (32) 160 Value Destroyed (593) 593 Prototype IDs (16) 320 Alien Tech Used (0) 0 Bonus (0) 0 TOTAL SCORE: 1673 Bonus ------- None Cogmind --------- Core Integrity 0/250 Matter 160/300 Energy 200/200 System Corruption 0% Temperature Cool (0) Movement Core (750) Ox14 Location -8/Recycling Parts ------- > --- POWER (1) -------- Subdweller Power Source > --- PROPULSION (2) --- (None) > --- UTILITY (2) ------ High-capacity Storage Unit > --- WEAPON (2) ------- (None) > --- INVENTORY (20) --- Meta Core Scrap Shield Subdweller Beam Cannon Subdweller Machine Gun SUBCON Basin (Full) Peak State ------------ > --- POWER ------------ Subdweller Power Source > --- PROPULSION ------- Subdweller Monowheel Subdweller Monowheel > --- UTILITY ---------- High-capacity Storage Unit Improved Light Armor Plating > --- WEAPON ----------- Improved Light Cannon Improved Light Cannon > --- INVENTORY -------- Meta Core Scrap Shield Subdweller Beam Cannon Subdweller Machine Gun SUBCON Basin [Rating: 34] Favorites ----------- Power Subdweller Power Source Engine Subdweller Power Source Propulsion Subdweller Monowheel Treads Improved Treads Wheel Subdweller Monowheel Utility High-capacity Storage Unit Device Seismic Detector Storage High-capacity Storage Unit Protection Improved Light Armor Plating Weapon Improved Light Cannon Energy Cannon Beam Cannon Ballistic Gun Light Assault Rifle Ballistic Cannon Improved Light Cannon Launcher Grenade Launcher Build | -11 -10 -10 -8 ------- Run | Yrd Mat Sub Rec Slots Evolved . | . . . . Power . | . . . . Propulsion . | . . . . Utility . | . . . . Weapon . | . . . . Parts Attached 23 | 8 6 8 1 Power 2 | 1 . 1 . Engine 2 | 1 . 1 . Core . | . . . . Reactor . | . . . . Propulsion 7 | 2 1 4 . Treads 3 | 1 1 1 . Leg . | . . . . Wheel 4 | 1 . 3 . Hover . | . . . . Flight . | . . . . Utility 5 | 3 1 . 1 Device 2 | 2 . . . Storage 2 | 1 1 . . Processor . | . . . . Hackware . | . . . . Protection 1 | . . . 1 Artifact . | . . . . Weapon 9 | 2 4 3 . Energy Gun . | . . . . Energy Cannon 2 | . 2 . . Ballistic Gun 2 | 2 . . . Ballistic Cannon 4 | . 2 2 . Launcher 1 | . . 1 . Special Weapon . | . . . . Impact Weapon . | . . . . Slashing Weapon . | . . . . Piercing Weapon . | . . . . Special Melee Weapon . | . . . . Unidentified Prototypes . | . . . . Parts Lost 9 | . . 4 5 Power 1 | . . 1 . Propulsion 3 | . . 1 2 Utility 1 | . . . 1 Weapon 4 | . . 2 2 Highest Loss Streak 5 | . . 2 5 To Critical Strikes . | . . . . Average Backups 13 | 3 13 18 4 Power . | . 1 . . Propulsion 4 | 1 4 6 . Utility . | . 1 . 1 Weapon 6 | . 6 9 2 Tool/Special . | . . . . Unused Backups 18 | . 2 12 4 Power 1 | . . 1 . Propulsion 5 | . . 5 . Utility 1 | . . . 1 Weapon 9 | . 2 5 2 Tool/Special 2 | . . 1 1 Average Slot Usage (%) 97 | . 99 95 99 Engine 11 | . 14 9 14 Treads 10 | . 14 13 . Wheel 17 | . 14 14 27 Device 11 | . 14 14 1 Storage 14 | . 14 14 14 Protection 2 | . . . 12 Energy Cannon 1 | . 7 . . Ballistic Gun 2 | . 8 . . Ballistic Cannon 22 | . 11 26 27 Peak Build Rating 34 | 7 12 32 34 Average Rating 16 | 6 9 15 33 On Entrance 12 | . 7 12 32 Naked Turns . | . . . . Heaviest Build 56 | 11 52 54 56 Greatest Support 40 | 20 23 40 40 Greatest Overweight (x) 17 | 1 5 5 17 Average Overweight (x) 2 | . 3 2 1 Largest Inventory Capacity 20 | 8 20 20 20 Average Capacity 19 | 7 19 20 20 Most Carried 20 | 5 19 20 20 Average Carried 17 | 3 13 19 20 Final Capacity 20 | 8 20 20 20 Final Carried 20 | 5 19 20 20 Class Distribution -------------------- 100% | Mutant Dominant Class ---------------- Mutant | -10/Materials Mutant | -10/Subcaves Mutant | -8/Recycling Resources | -11 -10 -10 -8 ----------- Run | Yrd Mat Sub Rec Matter Collected 960 | 332 118 478 32 Remotely 42 | 42 . . . Salvage Created 751 | 174 275 302 . Parts 48 | 9 15 24 . Haulers Intercepted 2 | . 2 . . Recyclers Shooed . | . . . . Parts Field Recycled . | . . . . Retrieved Matter . | . . . . Parts Self-Destructed 13 | . . 13 . Prevented . | . . . . Kills | -11 -10 -10 -8 ------- Run | Yrd Mat Sub Rec Combat Hostiles Destroyed 21 | . 8 13 . Cannons 17 | . 8 9 . AOE 4 | . . 4 . Classes Destroyed 9 | 3 3 3 . Worker 1 | 1 . . . Tunneler 5 | 5 . . . Hauler 2 | . 2 . . Recycler 1 | 1 . . . Turret 2 | . . 2 . Swarmer 12 | . 6 6 . Grunt 4 | . 2 2 . Sentry 1 | . . 1 . Subdweller 4 | . . 4 . Best Kill Streak 6 | 3 4 6 . Combat Bots Only 4 | . 4 4 . Max Kills in Single Turn 2 | 1 1 2 . Gunslinging . | . . . . Exploded 2 | . . 2 . Melee . | . . . . Uniques/NPCs Destroyed . | . . . . Combat | -11 -10 -10 -8 -------- Run | Yrd Mat Sub Rec Hostile Shots Fired 139 | . 20 96 23 Missed 41 | . 4 29 8 Hits 98 | . 16 67 15 Projectile 98 | . 16 67 15 AOE 8 | . . . 8 Critical Strikes 2 | . 2 . . Part Disruptions 1 | . . . 1 Damage Taken 1364 | . 144 792 428 Core 255 | . 31 154 70 Absorbed by Shields . | . . . . Core Remaining (%) 100 | 100 . . . Volleys Fired 107 | 26 15 66 . Largest 2 | 2 2 2 . Hottest 120 | 40 120 66 . Shots Fired 207 | 52 30 125 . Gun 54 | 52 2 . . Cannon 148 | . 28 120 . Launcher 5 | . . 5 . Special . | . . . . Kinetic 188 | 52 16 120 . Thermal 14 | . 14 . . Explosive 5 | . . 5 . Electromagnetic . | . . . . Robot Hit Streak 14 | 8 8 14 . Robot Miss Streak 3 | 3 2 3 . Penetration Max . | . . . . Secondary Targets . | . . . . Shots Hit Robots 127 | 32 17 78 . Core Hits 54 | 12 11 31 . Critical Kills 1 | 1 . . . Critical Parts Destroyed . | . . . . Critical Strikes 3 | 1 . 2 . Destroy 1 | 1 . . . Blast 2 | . . 2 . Melee Attacks . | . . . . Impact . | . . . . Slashing . | . . . . Piercing . | . . . . Sneak Attacks . | . . . . Combat Hostiles . | . . . . Follow-up Attacks . | . . . . Damage Inflicted 2367 | 251 344 1772 . Guns 259 | 251 8 . . Cannons 1872 | . 336 1536 . Explosions 236 | . . 236 . Melee . | . . . . Ramming . | . . . . Kinetic 1987 | 251 200 1536 . Thermal 144 | . 144 . . Explosive 236 | . . 236 . Electromagnetic . | . . . . Impact . | . . . . Slashing . | . . . . Piercing . | . . . . Highest Corruption . | . . . . Average Corruption . | . . . . Corruption Purged . | . . . . Corruption Blocked . | . . . . Overload Shots . | . . . . Overflow Damage 35 | . . 35 . Projectiles 25 | . . 25 . Explosions 10 | . . 10 . Melee . | . . . . Knockbacks 17 | . . 17 . Impact . | . . . . Kinetic 17 | . . 17 . Secondary . | . . . . Self-Inflicted Damage . | . . . . Shots . | . . . . Rammed . | . . . . Targets Rammed . | . . . . Kicked . | . . . . Crushed . | . . . . Highest Temperature 240 | . 240 . . Average Temperature 73 | . 73 . . Received Heat Transfer 303 | . 42 261 . Siege Activations . | . . . . Martial Activations . | . . . . Shielding Activations . | . . . . Robots Disrupted . | . . . . Combat Hostiles . | . . . . Robots Corrupted . | . . . . Combat Hostiles . | . . . . Parts Fried . | . . . . Impact Corruptions . | . . . . Robots Melted . | . . . . Combat Hostiles . | . . . . Parts Melted . | . . . . Heat Transferred 296 | . 296 . . Parts Sabotaged . | . . . . Parts Stolen . | . . . . Parts Stripped . | . . . . Power Chain Reactions . | . . . . Alert | -11 -10 -10 -8 ------- Run | Yrd Mat Sub Rec Maximum Alert Level . | . . . . Low Security (%) 100 | 100 100 . 100 Level 1 . | . . . . Level 2 . | . . . . Level 3 . | . . . . Level 4 . | . . . . Level 5 . | . . . . High Security . | . . . . Max Security . | . . . . Peak Influence 120 | 10 120 . 34 Initial 34 | . . . 34 Average 16 | 1 29 . 3 Influence Increases 648 | 35 287 270 56 Destroy 0b10 Robot/C 380 | . 160 220 . Destroy 0b10 Robot/NC 45 | 35 10 . . Destroy Leader 54 | . 34 20 . Successful Hack 31 | . 5 . 26 Select Force Hacks 60 | . 30 . 30 Destroy Structure 3 | . 3 . . Lose Combat Pursuer 75 | . 45 30 . Influence Decreases 648 | 35 197 287 129 Entered New Map 83 | . . 44 39 Time Decay 565 | 35 197 243 90 Squads Dispatched 1 | . 1 . . Investigation 1 | . 1 . . Extermination . | . . . . Reinforcement . | . . . . Assault . | . . . . Garrison . | . . . . Intercept . | . . . . Searches Triggered . | . . . . Construction Impeded . | . . . . Haulers Reinforced . | . . . . Active Scanning Responses . | . . . . Cargo Convoy Interrupts . | . . . . Stealth | -11 -10 -10 -8 --------- Run | Yrd Mat Sub Rec Distress Signals 1 | . 1 . . Communications Jammed . | . . . . Distress Signals . | . . . . Times Spotted 37 | . 14 20 3 Peak Tracking Total 7 | . 7 6 3 Tactical Retreats 5 | . 3 2 . Traps | -11 -10 -10 -8 ------- Run | Yrd Mat Sub Rec Traps Triggered 1 | . . 1 . Indirectly . | . . . . Trap Hack Attempts . | . . . . Triggered . | . . . . Disarmed . | . . . . Reprogrammed . | . . . . Reused . | . . . . Traps Extracted . | . . . . Installed . | . . . . Triggered . | . . . . Most Traps Carried 1 | . . 1 . Machines | -11 -10 -10 -8 ---------- Run | Yrd Mat Sub Rec Machines Disabled 4 | . . 4 . Max in Single Turn 2 | . . 2 . Machines Repaired . | . . . . Machines Dismantled . | . . . . Machines Sabotaged . | . . . . Overloaded Fab Kills . | . . . . Hacking | -11 -10 -10 -8 --------- Run | Yrd Mat Sub Rec Machines Accessed 12 | . 4 3 5 Terminals 7 | . 3 . 4 Fabricators . | . . . . Repair Stations . | . . . . Recycling Units 2 | . 1 . 1 Scanalyzers . | . . . . Garrison Access . | . . . . Total Hacks 25 | . 11 3 11 Successful 15 | . 7 3 5 Failed 10 | . 4 . 6 Catastrophic 1 | . . . 1 Database Lockouts . | . . . . Manual 8 | . 6 . 2 Terminals 16 | . 9 . 7 Fabricators . | . . . . Repair Stations . | . . . . Recycling Units 6 | . 2 . 4 Scanalyzers . | . . . . Garrison Access . | . . . . Terminal Hacks 12 | . 5 3 4 Robot Analysis 2 | . 2 . . Prototype ID Bank 2 | . . . 2 Open Door 1 | . . 1 . Locate Traps 1 | . 1 . . Recall Investigation 1 | . 1 . . Registered Components 1 | . . . 1 Zone Layout 2 | . 1 . 1 Proto ID Catalog 1 | . . 1 . Release Object 1 | . . 1 . Fabricator Hacks . | . . . . Repair Station Hacks . | . . . . Recycling Unit Hacks 1 | . 1 . . Retrieve Components 1 | . 1 . . Scanalyzer . | . . . . Garrison Access Hacks . | . . . . Unauthorized Hacks 2 | . 1 . 1 Terminals . | . . . . Fabricators . | . . . . Repair Stations . | . . . . Recycling Units 2 | . 1 . 1 Tunnel 2 | . 1 . 1 Scanalyzers . | . . . . Garrison Access . | . . . . Data Cores Recovered . | . . . . Used . | . . . . Hacking Detections 7 | . 3 . 4 Full Trace Events . | . . . . Feedback Events . | . . . . Feedback Blocked . | . . . . Robot Schematics Acquired . | . . . . Robots Built . | . . . . Authchips . | . . . . Time . | . . . . Total Robot Build Rating . | . . . . Part Schematics Acquired . | . . . . Parts Built . | . . . . Authchips . | . . . . Time . | . . . . Total Part Build Rating . | . . . . Parts Repaired . | . . . . Time . | . . . . Parts Recycled . | . . . . Recycled Matter . | . . . . Retrieved Matter . | . . . . Retrieved Components 1 | . 1 . . Parts Scanalyzed . | . . . . Part Schematics Acquired . | . . . . Parts Damaged . | . . . . Bothacking | -11 -10 -10 -8 ------------ Run | Yrd Mat Sub Rec Used RIF Installer . | . . . . Robots Hacked . | . . . . Non-combat . | . . . . Combat . | . . . . Robot Hacks Applied . | . . . . Relay Couplers Released . | . . . . Fabnet Peak Effective % . | . . . . Robots Rewired . | . . . . Allies Hacked . | . . . . Hacks Repelled . | . . . . Allies | -11 -10 -10 -8 -------- Run | Yrd Mat Sub Rec Total Allies . | . . . . Largest Group . | . . . . Highest-Rated Group . | . . . . Highest-Rated Ally . | . . . . Total Orders . | . . . . Ally Attacks . | . . . . Total Damage . | . . . . Kills . | . . . . Allies Corrupted . | . . . . Allies Melted . | . . . . Intel | -11 -10 -10 -8 ------- Run | Yrd Mat Sub Rec Active Infowar (turns) 2949 | 13 885 1970 81 Seismic 2949 | 13 885 1970 81 Robot Analysis Total 2 | . 2 . . Derelict Logs Recovered 2 | . . 2 . Drone Launches . | . . . . Drone Recoveries . | . . . . Exploration | -11 -10 -10 -8 ------------- Run | Yrd Mat Sub Rec Turns Passed 3763 | 190 885 1970 718 Spaces Moved 2332 | 121 456 1187 568 Core 4 | 3 . . 1 Treads 85 | 1 84 . . Legs . | . . . . Wheels 2243 | 117 372 1187 567 Hover . | . . . . Flight . | . . . . Fastest Speed 50 | 50 95 120 120 Average Speed 136 | 88 169 134 124 Slowest Speed 900 | 160 320 155 900 Overloaded Moves . | . . . . Propulsion Burnouts . | . . . . Robots Hopped . | . . . . Potential Cave-ins . | . . . . Cave-ins Triggered . | . . . . Exploration Rate (%) 49 | 6 51 74 65 Regions Visited 3 Branch Regions 2 Pre-discovered Areas 2 | . 1 . 1 Known Exits Taken . | . . . . Unknown Exits Taken 3 | 1 1 1 . Scrap Searched 5 | . . 5 . Spaces Dug . | . . . . Terrain Destroyed 19 | . 2 17 . Melee . | . . . . Projectile 4 | . 2 2 . AOE 15 | . . 15 . Terrain Rammed . | . . . . Walls Destroyed . | . . . . Machines Disabled . | . . . . Actions | -11 -10 -10 -8 --------- Run | Yrd Mat Sub Rec Total 2721 | 159 541 1440 581 Wait 191 | . 43 137 11 Move 2329 | 120 455 1186 568 Hop . | . . . . Pick Up 29 | 4 13 12 . Fast Attach 14 | 8 4 1 1 Attach 3 | . . 3 . Detach 5 | 1 4 . . Swap 13 | . 2 11 . Drop 30 | . 5 24 1 Fire 107 | 26 15 66 . Melee . | . . . . Ram . | . . . . Kick . | . . . . Crush . | . . . . Escape Stasis . | . . . . Rewire . | . . . . Trap . | . . . . Miscellaneous . | . . . . Route ------- -11/Scrapyard -10/Materials (discovered 2 exits: [*Mat] / *Sub) -10/Subcaves (discovered 2 exits: [*Mat] / *Rec) -8/Recycling (discovered 1 exit: [*Fac]) History --------- Turn | Location | Event 17 | -11/Scrapyard | Discovered new exit (range 16) 191 | -11/Scrapyard | Entered Materials 308 | -10/Materials | Build established: Mutant 530 | -10/Materials | Discovered new exit (range 7) 560 | -10/Materials | Discovered new exit (range 15) 1076 | -10/Materials | Entered Subcaves 1131 | -10/Subcaves | A swath of the cavern ceiling suddenly collapsed 1151 | -10/Subcaves | Learned Materials terminal intel 1318 | -10/Subcaves | Visited 4L-MR0's lab 1338 | -10/Subcaves | Found Meta Core 1875 | -10/Subcaves | Disturbed a concealed Subdweller 2266 | -10/Subcaves | Discovered new exit (range 9) 2531 | -10/Subcaves | Learned Materials stockpile data 2595 | -10/Subcaves | Discovered new exit (range 9) 2596 | -10/Subcaves | Core integrity fell below 50% 2944 | -10/Subcaves | Found SUBCON Basin 3046 | -10/Subcaves | Entered Recycling 3261 | -8/Recycling | Discovered new exit (range 10) 3748 | -8/Recycling | Scanned before Scraplab entrance 3762 | -8/Recycling | Core integrity fell below 20% 3764 | -8/Recycling | Destroyed by P-60 Hacker with Shock Rifle Last Messages --------------- 03750_ Imp. Light Armor Plating destroyed. YD-HTM(j): Strange, I checked the recommendation list not long ago and didn't see anyone like you on it. Who recommended you? Anyway, the system is always right, go on in. Not my problem as long as you don't touch anything in here. Just really don't mess with anything in there. Then it'll be my problem, and yours. 03751_ The floor rises up to form a wall. 03752_ P-60 Hacker resets D-53 Grenadier, system corruption cleaned. 03753_ The wall retracts into the floor. 03755_ Sub. Monowheel destroyed. 03755_ YD-HTM(j) destroyed. 03757_ Imp. Light Cannon destroyed. 03758_ G-47 Trooper destroyed. 03759_ Broken Sub. Monowheel destroyed. 03764_ The unstable cave ceiling collapses. Map ----- +----------------------------------------------------+ | | | | | | | | | | | | | | | | | | | | | | | | | | | | | | | | | | | | | | | ?????????????????????????????????????????????????? | | ???????????????????????###???????????????????????? | | ?????????????????????### ####???????????????????? | | ????????????????????## ##??????????????????? | | ????????????????????# ! +??????????????????? | | ?????????????????????# = #???????????????????? | | ?????????????????????# @ #???????????????????? | | ?????????????????????# # #??????????????????? | | ????????????????????# ##??????????????????? | | ????????????????????## #??????????????????? | | ?????????????????????# #??????????????????? | | ????????????????????## ##??????????????????? | | #########???????????# #??????????????????? | | #???????????# #??????????????????? | | ???????????## d ###??????????????????? | | #??????????#### ##????????????????????? | | #????????### ##?????????????????????? | | #????????# % % #??????????????????????? | | ?? #????????# b ##??????????????????????? | | ???? #?######## #???????????????????????? | | ######+#### # % p #???????????????????????? | | ## ! ##???????????????????????? | | %#????????????????????????? | | ## / #????????????????????????? | | #%%%#!!!### ### ! #????????????????????????? | | # %%#!!!#?#######?# / #????????????????????????? | | #########?????????# = % #???????#######??????????? | | ! #????????????#[ ! #???????# #??????????? | | #????????????# #???????# #??????????? | | /#????????????# #???????# """ #??????????? | | #????????????# ! #???????# """ #??????????? | +----------------------------------------------------+ Best States ------------- Heat Dissipation 25 Energy Generation 10 Energy Capacity 200 Matter Stores 300 Matter Capacity 300 Sight Range 16 Terrain Scan Density 10 Armor Coverage 150 Evasion (%) 44 Recoil Reduction 1 Item Schematics ----------------- None Robot Schematics ------------------ None Fabricated ------------ Nothing Repaired ---------- Nothing Alien Tech Used ----------------- None Achievements -------------- None Challenges ------------ None Game ------ Seed MetaExplosiveLeg Manual? 0 Play Time 00:25:14 Cumulative 58.3 hours Start 2025.09.18 @ 23:12:26 End 2025.09.18 @ 23:38:06 Sessions 1 Manual Loads 0 Difficulty Rogue Special Mode None Game No. 114 Rogue 114 Adventurer 0 Explorer 0 Win Type - Total 0 Types 0/0/0/0/0/0/0/0/0/0 Lore% 48 Gallery% 35 Achievement% 32 Wizard Run 0 Options --------- Layout 2 ASCII 0 Keyboard 1 Movement Arrows Keybinds 0 Fullscreen 2 Font 32/SmallcapsGlow Map View 50x44 Zoom Use 0% Tactical HUD 1 Map Filters NONE Filters NONE Steam 1 RUN: 5466ce44-93e0-41d4-92c8-77d112e45cdc